Cogmind - Beta 12 @@@ ROGUE MODE // 2023.04.07 @ 19:41:33 Player: ZLD1 Result: Destroyed by H-61 Shepherd with Heavy Assault Cannon Performance ------------- Evolutions (2) 1000 Regions Visited (5) 1000 Robots Destroyed (31) 155 Value Destroyed (994) 994 Prototype IDs (25) 500 Alien Tech Used (0) 0 Bonus (290) 290 TOTAL SCORE: 3939 Bonus ------- Aligned with FarCom 300 Friendly Fire -10 Cogmind --------- Core Integrity 0/550 Matter 300/300 Energy 99/100 System Corruption 1% Temperature Cool (18) Movement Core (200) Ox3 Location -8/Materials Parts ------- > --- POWER (1) -------- (None) > --- PROPULSION (4) --- (None) > --- UTILITY (4) ------ Medium Storage Unit Hacking Suite > --- WEAPON (2) ------- (None) > --- INVENTORY (10) --- Light Ion Engine Light Deuterium Engine Medium Storage Unit Improved Signal Interpreter PSU Rigger EM Pulse Cannon Minigun Flak Cannon Improved Datajack Makeshift Axe Peak State ------------ > --- POWER ------------ Light Angular Momentum Engine > --- PROPULSION ------- Aluminum Leg Carbon-fiber Leg Carbon-fiber Leg > --- UTILITY ---------- Medium Storage Unit Seismic Detector Hacking Suite Hacking Suite > --- WEAPON ----------- High-powered Shotgun High-powered Shotgun > --- INVENTORY -------- Ion Engine Light Deuterium Engine Medium Storage Unit Improved Signal Interpreter Improved Terrain Scanner PSU Rigger EM Pulse Cannon Minigun Improved Datajack Makeshift Axe [Rating: 29] Favorites ----------- Power Ion Engine Engine Ion Engine Power Core Light Nuclear Core Propulsion Aluminum Leg Leg Aluminum Leg Wheel Wheel Utility Seismic Detector Device Seismic Detector Storage Medium Storage Unit Processor Improved Signal Interpreter Hackware Hacking Suite Weapon High-powered Shotgun Energy Gun Small Laser Energy Cannon Advanced Beam Cannon Ballistic Gun High-powered Shotgun Slashing Weapon Makeshift Axe Build | -11 -10 -10 -10 -9 -8 ------- Run | Jun Mat Min Exi Min Mat Slots Evolved 4 | . . . . . 4 Power . | . . . . . . Propulsion 2 | . . . . . 2 Utility 2 | . . . . . 2 Weapon . | . . . . . . Parts Attached 40 | 7 . . . . 33 Power 7 | 1 . . . . 6 Engine 4 | 1 . . . . 3 Core 3 | . . . . . 3 Reactor . | . . . . . . Propulsion 10 | 2 . . . . 8 Treads . | . . . . . . Leg 6 | 2 . . . . 4 Wheel 4 | . . . . . 4 Hover . | . . . . . . Flight . | . . . . . . Utility 7 | 2 . . . . 5 Device 2 | 1 . . . . 1 Storage 2 | 1 . . . . 1 Processor 1 | . . . . . 1 Hackware 2 | . . . . . 2 Protection . | . . . . . . Artifact . | . . . . . . Weapon 16 | 2 . . . . 14 Energy Gun 2 | 1 . . . . 1 Energy Cannon 1 | . . . . . 1 Ballistic Gun 11 | 1 . . . . 10 Ballistic Cannon . | . . . . . . Launcher . | . . . . . . Special Weapon . | . . . . . . Impact Weapon . | . . . . . . Slashing Weapon 2 | . . . . . 2 Piercing Weapon . | . . . . . . Special Melee Weapon . | . . . . . . Unidentified Prototypes 2 | . . . . . 2 Parts Lost 26 | . . . . . 26 Power 5 | . . . . . 5 Propulsion 10 | . . . . . 10 Utility 4 | . . . . . 4 Weapon 7 | . . . . . 7 Highest Loss Streak 6 | . . . . . 6 To Critical Strikes . | . . . . . . Average Slot Usage (%) 83 | . 100 100 100 100 75 Engine 7 | . 14 14 14 14 4 Core 2 | . . . . . 3 Leg 17 | . 28 28 28 28 12 Wheel 4 | . . . . . 6 Device 11 | . 14 14 14 14 10 Storage 10 | . 14 14 14 14 9 Processor 1 | . . . . . 1 Hackware 6 | . . . . . 10 Energy Gun 5 | . 14 14 14 14 . Ballistic Gun 15 | . 14 14 14 14 15 Naked Turns . | . . . . . . Heaviest Build 31 | 14 14 14 14 14 31 Greatest Support 40 | 20 20 20 20 20 40 Greatest Overweight (x) 7 | . . . . . 7 Average Overweight (x) . | . . . . . . Largest Inventory Capacity 10 | 8 8 8 8 8 10 Average Capacity 9 | 7 8 8 8 8 9 Most Carried 10 | 5 5 6 7 7 10 Average Carried 8 | 2 3 5 6 7 9 Final Capacity 10 | 8 8 8 8 8 10 Final Carried 10 | 3 5 6 7 7 10 Class Distribution -------------------- 64% | Mutant 34% | Scavenger-Mutant Dominant Class ---------------- Mutant | -10/Materials Mutant | -10/Mines Mutant | -10/Exiles Mutant | -9/Mines Scavenger-Mutant | -8/Materials Resources | -11 -10 -10 -10 -9 -8 ----------- Run | Jun Mat Min Exi Min Mat Matter Collected 1058 | 172 . 67 . 73 746 Remotely . | . . . . . . Salvage Created 1111 | 59 12 15 . . 1025 Parts 64 | 9 2 1 . . 52 Haulers Intercepted 1 | . . . . . 1 Recyclers Shooed 1 | 1 . . . . . Parts Field Recycled . | . . . . . . Retrieved Matter . | . . . . . . Parts Self-Destructed . | . . . . . . Prevented . | . . . . . . Kills | -11 -10 -10 -10 -9 -8 ------- Run | Jun Mat Min Exi Min Mat Combat Hostiles Destroyed 22 | . . 1 . . 21 Melee 2 | . . . . . 2 Guns 20 | . . 1 . . 19 Classes Destroyed 9 | 1 1 1 . . 6 Worker 1 | . . . . . 1 Builder 1 | . . . . . 1 Tunneler 4 | 3 . . . . 1 Hauler 1 | . . . . . 1 Operator 1 | . 1 . . . . Watcher 1 | . . . . . 1 Swarmer 3 | . . 1 . . 2 Grunt 13 | . . . . . 13 Sentry 6 | . . . . . 6 Best Kill Streak 5 | 2 1 1 . . 5 Combat Bots Only 5 | . . 1 . . 5 Max Kills in Single Turn 2 | 1 1 1 . . 2 Gunslinging . | . . . . . . Exploded . | . . . . . . Melee 1 | . . . . . 1 Uniques/NPCs Destroyed . | . . . . . . Combat | -11 -10 -10 -10 -9 -8 -------- Run | Jun Mat Min Exi Min Mat Damage Taken 2905 | . . 85 . . 2820 Core 591 | . . 23 . . 568 Absorbed by Shields 120 | . . . . . 120 Core Remaining (%) 95 | 100 . . . 90 . Volleys Fired 102 | 9 3 3 . . 87 Largest 2 | 2 2 2 . . 2 Hottest 69 | 60 60 60 . . 69 Shots Fired 174 | 18 6 6 . . 144 Gun 174 | 18 6 6 . . 144 Cannon . | . . . . . . Launcher . | . . . . . . Special . | . . . . . . Kinetic 147 | 9 3 3 . . 132 Thermal 27 | 9 3 3 . . 12 Explosive . | . . . . . . Electromagnetic . | . . . . . . Robot Hit Streak 7 | 4 3 2 . . 7 Robot Miss Streak 9 | 1 1 1 . . 9 Penetration Max . | . . . . . . Secondary Targets 3 | . . . . . 3 Max Gunslinging Chain 1 | . . . . . 1 Shots Hit Robots 118 | 9 4 3 . . 102 Core Hits 59 | 4 2 1 . . 52 Critical Kills 2 | . . . . . 2 Critical Parts Destroyed 1 | . 1 . . . . Critical Strikes 3 | . 1 . . . 2 Destroy 3 | . 1 . . . 2 Melee Attacks 5 | . . . . . 5 Impact . | . . . . . . Slashing 5 | . . . . . 5 Piercing . | . . . . . . Sneak Attacks 1 | . . . . . 1 Combat Hostiles . | . . . . . . Follow-up Attacks . | . . . . . . Damage Inflicted 2228 | 112 47 33 . . 2036 Guns 2007 | 112 47 32 . . 1816 Cannons . | . . . . . . Explosions . | . . . . . . Melee 133 | . . . . . 133 Ramming 88 | . . 1 . . 87 Kinetic 1777 | 35 12 22 . . 1708 Thermal 230 | 77 35 10 . . 108 Explosive . | . . . . . . Electromagnetic . | . . . . . . Impact . | . . . . . . Slashing 133 | . . . . . 133 Piercing . | . . . . . . Highest Corruption 1 | . . . . . 1 Average Corruption 1 | . . . . . 1 Corruption Purged . | . . . . . . Corruption Blocked . | . . . . . . Effects 2 | . . . . . 2 Message Errors 1 | . . . . . 1 Heat Flow Errors 1 | . . . . . 1 Overload Shots . | . . . . . . Overflow Damage 18 | . . . . . 18 Projectiles . | . . . . . . Explosions . | . . . . . . Melee 18 | . . . . . 18 Knockbacks . | . . . . . . Impact . | . . . . . . Kinetic . | . . . . . . Secondary . | . . . . . . Self-Inflicted Damage 26 | . . . . . 26 Shots . | . . . . . . Rammed 5 | . . . . . 5 Targets Rammed 9 | . . 1 . . 8 Kicked 4 | . . 1 . . 3 Crushed . | . . . . . . Highest Temperature 142 | . . . . . 142 Average Temperature 23 | . . . . . 23 Received Heat Transfer 1244 | . . . . . 1244 Siege Activations . | . . . . . . Robots Corrupted . | . . . . . . Combat Hostiles . | . . . . . . Parts Fried 2 | . . . . . 2 Impact Corruptions 1 | . . . . . 1 Robots Melted . | . . . . . . Combat Hostiles . | . . . . . . Parts Melted . | . . . . . . Heat Transferred 499 | 175 75 25 . . 224 Parts Sabotaged . | . . . . . . Parts Stolen . | . . . . . . Parts Stripped . | . . . . . . Power Chain Reactions . | . . . . . . Missiles Intercepted . | . . . . . . Alert | -11 -10 -10 -10 -9 -8 ------- Run | Jun Mat Min Exi Min Mat Peak Influence 408 | 15 14 50 . . 408 Initial 9 | . 9 5 . . . Average 88 | 7 12 32 . . 120 Maximum Alert Level 2 | . . . . . 2 Low Security (%) 83 | 100 100 100 . 100 76 Level 1 15 | . . . . . 22 Level 2 . | . . . . . 1 Level 3 . | . . . . . . Level 4 . | . . . . . . Level 5 . | . . . . . . High Security . | . . . . . . Max Security . | . . . . . . Squads Dispatched 8 | . 2 . . . 6 Investigation 1 | . 1 . . . . Extermination . | . . . . . . Reinforcement 7 | . 1 . . . 6 Assault . | . . . . . . Garrison . | . . . . . . Intercept . | . . . . . . Searches Triggered . | . . . . . . Construction Impeded 1 | . . . . . 1 Haulers Reinforced . | . . . . . . Active Scanning Responses . | . . . . . . Cargo Convoy Interrupts . | . . . . . . Stealth | -11 -10 -10 -10 -9 -8 --------- Run | Jun Mat Min Exi Min Mat Distress Signals 3 | . . . . . 3 Communications Jammed . | . . . . . . Distress Signals . | . . . . . . Times Spotted 74 | . 1 6 . . 67 Peak Tracking Total 13 | . 3 10 . . 13 Tactical Retreats 9 | . . . . . 9 Traps | -11 -10 -10 -10 -9 -8 ------- Run | Jun Mat Min Exi Min Mat Traps Triggered 1 | . 1 . . . . Indirectly . | . . . . . . Trap Hack Attempts . | . . . . . . Triggered . | . . . . . . Disarmed . | . . . . . . Reprogrammed . | . . . . . . Reused . | . . . . . . Traps Extracted . | . . . . . . Installed . | . . . . . . Triggered . | . . . . . . Machines | -11 -10 -10 -10 -9 -8 ---------- Run | Jun Mat Min Exi Min Mat Machines Disabled . | . . . . . . Max in Single Turn . | . . . . . . Machines Repaired . | . . . . . . Machines Sabotaged . | . . . . . . Overloaded Fab Kills . | . . . . . . Hacking | -11 -10 -10 -10 -9 -8 --------- Run | Jun Mat Min Exi Min Mat Machines Accessed 3 | . . . 1 1 1 Terminals 1 | . . . . . 1 Fabricators . | . . . . . . Repair Stations . | . . . . . . Recycling Units . | . . . . . . Scanalyzers . | . . . . . . Garrison Access . | . . . . . . Total Hacks 3 | . . . 1 1 1 Successful 3 | . . . 1 1 1 Failed . | . . . . . . Catastrophic . | . . . . . . Database Lockouts . | . . . . . . Manual 1 | . . . 1 . . Terminals 1 | . . . . . 1 Fabricators . | . . . . . . Repair Stations . | . . . . . . Recycling Units . | . . . . . . Scanalyzers . | . . . . . . Garrison Access . | . . . . . . Terminal Hacks 3 | . . . 1 1 1 Open Door 1 | . . . . 1 . Emergency Access Points 1 | . . . . . 1 EX-Prototype ID Bank 1 | . . . 1 . . Fabricator Hacks . | . . . . . . Repair Station Hacks . | . . . . . . Recycling Unit Hacks . | . . . . . . Scanalyzer . | . . . . . . Garrison Access Hacks . | . . . . . . Unauthorized Hacks . | . . . . . . Terminals . | . . . . . . Fabricators . | . . . . . . Repair Stations . | . . . . . . Recycling Units . | . . . . . . Scanalyzers . | . . . . . . Garrison Access . | . . . . . . Data Cores Recovered . | . . . . . . Used . | . . . . . . Hacking Detections 1 | . . . . . 1 Full Trace Events . | . . . . . . Feedback Events . | . . . . . . Feedback Blocked . | . . . . . . Robot Schematics Acquired . | . . . . . . Robots Built . | . . . . . . Authchips . | . . . . . . Time . | . . . . . . Total Robot Build Rating . | . . . . . . Part Schematics Acquired . | . . . . . . Parts Built . | . . . . . . Authchips . | . . . . . . Time . | . . . . . . Total Part Build Rating . | . . . . . . Parts Repaired . | . . . . . . Time . | . . . . . . Parts Recycled . | . . . . . . Recycled Matter . | . . . . . . Retrieved Matter . | . . . . . . Retrieved Components . | . . . . . . Parts Scanalyzed . | . . . . . . Part Schematics Acquired . | . . . . . . Parts Damaged . | . . . . . . Bothacking | -11 -10 -10 -10 -9 -8 ------------ Run | Jun Mat Min Exi Min Mat Used RIF Installer . | . . . . . . Robots Hacked . | . . . . . . Non-combat . | . . . . . . Combat . | . . . . . . Robot Hacks Applied . | . . . . . . Relay Couplers Released . | . . . . . . Fabnet Peak Effective % . | . . . . . . Robots Rewired . | . . . . . . Allies Hacked . | . . . . . . Hacks Repelled . | . . . . . . Allies | -11 -10 -10 -10 -9 -8 -------- Run | Jun Mat Min Exi Min Mat Total Allies 3 | . . 1 . 2 . Largest Group 2 | . . 1 . 2 2 Highest-Rated Group 39 | . . 31 . 39 39 Highest-Rated Ally 31 | . . 31 . 31 31 Total Orders . | . . . . . . Ally Attacks 5 | . . . . . 5 Total Damage 105 | . . . . . 105 Kills . | . . . . . . Allies Corrupted . | . . . . . . Allies Melted 1 | . . . . . 1 Intel | -11 -10 -10 -10 -9 -8 ------- Run | Jun Mat Min Exi Min Mat Robot Analysis Total . | . . . . . . Derelict Logs Recovered 3 | . . 1 . 2 . Drone Launches . | . . . . . . Drone Recoveries . | . . . . . . Exploration | -11 -10 -10 -10 -9 -8 ------------- Run | Jun Mat Min Exi Min Mat Turns Passed 3477 | 121 111 337 258 406 2244 Spaces Moved 2418 | 79 84 272 215 339 1429 Core 41 | 24 . . . . 17 Treads . | . . . . . . Legs 1698 | 55 84 272 215 339 733 Wheels 679 | . . . . . 679 Hover . | . . . . . . Flight . | . . . . . . Fastest Speed 50 | 50 120 120 120 120 80 Average Speed 117 | 98 120 120 120 120 116 Slowest Speed 400 | 120 120 120 120 120 400 Overloaded Moves . | . . . . . . Propulsion Burnouts . | . . . . . . Robots Hopped . | . . . . . . Cave-ins Triggered . | . . . . . . Exploration Rate (%) 46 | 4 19 69 41 69 77 Regions Visited 5 Branch Regions 3 Pre-discovered Areas 1 | . . . . 1 . Known Exits Taken . | . . . . . . Unknown Exits Taken 5 | 1 1 1 1 1 . Scrap Searched 1 | . . 1 . . . Spaces Dug . | . . . . . . Terrain Destroyed . | . . . . . . Melee . | . . . . . . Projectile . | . . . . . . AOE . | . . . . . . Terrain Rammed . | . . . . . . Walls Destroyed . | . . . . . . Machines Disabled . | . . . . . . Actions | -11 -10 -10 -10 -9 -8 --------- Run | Jun Mat Min Exi Min Mat Total 2876 | 103 88 276 215 338 1856 Wait 266 | . . . . . 266 Move 2413 | 78 83 271 214 338 1429 Hop . | . . . . . . Pick Up 28 | 9 2 1 1 . 15 Fast Attach 18 | 1 . . . . 17 Attach 15 | 6 . . . . 9 Detach . | . . . . . . Swap 8 | . . . . . 8 Drop 12 | . . . . . 12 Fire 102 | 9 3 3 . . 87 Melee 5 | . . . . . 5 Ram 5 | . . . . . 5 Kick 4 | . . 1 . . 3 Crush . | . . . . . . Escape Stasis . | . . . . . . Rewire . | . . . . . . Trap . | . . . . . . Miscellaneous . | . . . . . . Route ------- -11/Junkyard -10/Materials -10/Mines (discovered 2 exits: [*Mat] / *Exi) -10/Exiles -9/Mines (discovered 2 exits: *Mat x2) -8/Materials (discovered 1 exit: *Fac) History --------- Turn | Location | Event 10 | -11/Junkyard | Discovered new exit (range 14) 122 | -11/Junkyard | Entered Materials 179 | -10/Materials | Discovered new exit (range 16) 233 | -10/Materials | Entered Mines 234 | -10/Mines | Assembled infested the area 251 | -10/Mines | Learned Materials stockpile data 313 | -10/Mines | Build established: Mutant 320 | -10/Mines | A weapon hastily lodged in a ceiling crevice suddenly fell to the ground 336 | -10/Mines | Received a Mining Laser from a helpful Derelict 405 | -10/Mines | Discovered new exit (range 16) 433 | -10/Mines | Received a Rocket Launcher from a helpful Derelict 564 | -10/Mines | Deemed a non-threat by the Exiles lab entrance 564 | -10/Mines | Discovered new exit (range 5) 570 | -10/Mines | Entered Exiles 603 | -10/Exiles | Met 8R-AWN 621 | -10/Exiles | Met EX-HEX 656 | -10/Exiles | Met EX-BIN 669 | -10/Exiles | Aligned with FarCom system 670 | -10/Exiles | Given EX-Vault access code 701 | -10/Exiles | Opened EX-Vault 710 | -10/Exiles | Found PSU Rigger 738 | -10/Exiles | Warned to stay clear of 0b10 Research branches 814 | -10/Exiles | Discovered new exit (range 14) 828 | -10/Exiles | Left Exiles lab with PSU Rigger 828 | -10/Exiles | Entered Mines 937 | -9/Mines | Met a Derelict who couldn't figure out how to use a Trap Extractor 1155 | -9/Mines | Discovered new exit (range 5) 1202 | -9/Mines | Learned 2 Materials zone layouts 1226 | -9/Mines | Discovered new exit (range 6) 1234 | -9/Mines | Entered Materials 1234 | -8/Materials | Accompanied by 2 allies 1234 | -8/Materials | Evolved 4 slots: Propulsion x2, Utility x2 1240 | -8/Materials | Led the pair of lost Derelicts to an unsafe place 1354 | -8/Materials | Lost 5 parts (1p2n2w) 1647 | -8/Materials | Build established: Scavenger-Mutant 2074 | -8/Materials | Lost 5 parts (1p2n2w) 2536 | -8/Materials | Build established: Mutant 2742 | -8/Materials | Core integrity fell below 50% 2781 | -8/Materials | Lost 3 parts (1p1n1u) 3315 | -8/Materials | Build established: Scavenger-Mutant 3427 | -8/Materials | Lost 3 parts (1p1n1u) 3461 | -8/Materials | Discovered new exit (range 7) 3464 | -8/Materials | Identified exit to Factory 3477 | -8/Materials | Core integrity fell below 20% 3478 | -8/Materials | Destroyed by H-61 Shepherd with Heavy Assault Cannon Last Messages --------------- 03461_ H-61 Shepherd calls for reinforcements. 03461_ ALERT: Suspicious intruders detected, dispatching Specialist reinforcements to area. 03464_ EXIT=IDENTIFIED: FACTORY 03465_ Wheel destroyed. 03465_ Imp. Signal Interpreter destroyed. 03465_ Critical hit (Blast). 03465_ Knocked back. 03467_ H-61 Shepherd calls for reinforcements. 03467_ ALERT: Hostile activity reported, dispatching reinforcements to area. 03467_ Slug penetrates Wall. 03470_ Wheel destroyed. 03470_ Hpw. Shotgun destroyed. 03470_ Knocked back. 03474_ Hpw. Shotgun destroyed. 03474_ Knocked back. 03476_ Nuclear Core destroyed. 03476_ Penetrated by Slug. 03476_ Knocked back. Map ----- +----------------------------------------------------+ | | | | | | | | | | | | | | | | | | | | | | | ?????????????????????????????????????????????????? | | ?????########????????????????????????????????????? | | ?????# #????????????????????????????????????? | | ?????# #????????????????????????????????????? | | ?????# #??????????????????#########?????????? | | ?????# #########??????????# #?????????? | | ?????# # #??????????# #?????????? | | ??????? !# " #??????##### ###?###+### | | ???######+### """ #??????+ #?# # | | ???# # """ #??????#####+### ### # | | ???# # """ #??????????????# + | | ???# + "" #??????????????# ^^^### *%! # | | ???# # """ ####+####??????# #?# ! # | | ???# # "" # % % #??????# #?### ### | | ???# ### ! "" !# H @ ######## #???# ### | | ???# #?# " # ##### # | | ???# #?# ###;; # % + | | ???# #?#########?### # # | | ???# #?????????????# #;;########### ### | | ???# #?????????????# ####???# ! # ### | | ???# #?????????????# #??????# + # | | ???# #?????????????# #??????# /! # # | | ???# #?????????????# #??????# [! ## #### # | | ???# #?????????????# g#???? # ! !!## #??# # | | ???# #?????????????#ggg#??"" # ## #??# # | | ???# #?????????????# g # """ ####+### #??# # | | ???# #?????????????+ g + """ #??#%###+#### # | | ???###### #?????????????# # #??# # # # | | ????????# #?????????????# # #??# # # # | | ????????# ###########??## g ########??# # """ + | | ????????# +[ #??# w #????????# # """ # | | ????????# #%! #??# gg #????????# # """ # | | ????????# #[ #??# T #????????# # # | | ????????# # #??# #????????# ######## | | ????????# ###########??# #????????# ######## | | ?######## ##########???## #######???# | | ?#= # ## ??# # #???#### ####### | | ?# !! # ## # # #??????# #?????? | | ## !! # ## / # ! #??????# #?????? | +----------------------------------------------------+ Best States ------------- Heat Dissipation 31 Energy Generation 18 Energy Capacity 250 Matter Stores 300 Matter Capacity 300 Sight Range 16 Terrain Scan Density 10 Evasion (%) 55 Offensive Hacking 20 Item Schematics ----------------- None Robot Schematics ------------------ None Fabricated ------------ Nothing Alien Tech Used ----------------- None Achievements -------------- Slippery One Challenges ------------ None Game ------ Seed GodTacticalCoupler Manual? 0 Play Time 00:32:03 Cumulative 27.6 hours Start 2023.04.07 @ 19:02:27 End 2023.04.07 @ 19:41:33 Sessions 1 Manual Loads 0 Difficulty Rogue Special Mode None Game No. 62 Rogue 62 Adventurer 0 Explorer 0 Win Type - Total 0 Types 0/0/0/0/0/0/0/0/0 Lore% 24 Gallery% 32 Achievement% 26 Wizard Run 0 Options --------- ASCII 0 Keyboard 0 Movement Mouse Keybinds 0 Fullscreen 1 Font 24/Smallcaps Map View 64x52 Tactical HUD 1 Map Filters NONE Filters NONE Steam 1 RUN: efddb68b-2e6d-4991-b87d-ca4a7d222137